{"text_format":"1","workbook":"xlsx","n_sheets":3,"sheets":["Πίνακας εργαλείων","Λίστα εξοπλισμού","Συγκεντρωτικά δεδομένα"],"not_rendered":{"charts":0,"images":0,"macros":1,"external_links":0,"defined_names":13,"comments":0,"pivot_tables":1},"unopened":[],"bounds":{"document_bytes":16777216,"sheet_cells":100000,"rows_first":2000,"rows_last":500,"rows_between":2000,"halvings":0,"cell_chars":16384,"cell_head_chars":4096},"cells_cut":0,"cells_raw":0,"read":"whole","date_system":"1900"}

{"sheet":"Πίνακας εργαλείων","index":0,"n_rows":20,"n_cols":6,"rows_kept":20,"cut":false,"hidden":false,"merged":[]}
[null,"Πίνακας εργαλείων"]
[]
[]
[null,null,null,null,null,"Συνολικό πλήθος"]
[null,null,null,null,null,{"$f":"GETPIVOTDATA(\"Αρχική αξία\",'Συγκεντρωτικά δεδομένα'!$B$11)","v":3}]
[]
[null,null,null,null,null,"Συνολικό μηνιαίο κόστος"]
[null,null,null,null,null,{"$f":"GETPIVOTDATA(\"Συνολικό μηνιαίο κόστος\",'Συγκεντρωτικά δεδομένα'!$B$11)","v":1765.5943035068672}]
[]
[null,null,null,null,null,"Λειτουργικό κόστος"]
[null,null,null,null,null,{"$f":"GETPIVOTDATA(\"Μηνιαίο λειτουργικό κόστος\",'Συγκεντρωτικά δεδομένα'!$B$11)","v":605}]
[]
[null,null,null,null,null,"Μηνιαία απόσβεση"]
[null,null,null,null,null,{"$f":"GETPIVOTDATA(\"Μηνιαία απόσβεση (Γραμμική)\",'Συγκεντρωτικά δεδομένα'!$B$11)","v":659.72222222222217}]
[]
[null,null,null,null,null,"Ποσό πληρωμής"]
[null,null,null,null,null,{"$f":"GETPIVOTDATA(\"Μηνιαία πληρωμή\",'Συγκεντρωτικά δεδομένα'!$B$11)","v":1160.5943035068672}]
[]
[null,null,null,null,null,"Παρούσα αξία"]
[null,null,null,null,null,{"$f":"GETPIVOTDATA(\"Παρούσα αξία\",'Συγκεντρωτικά δεδομένα'!$B$11)","v":36925.342465753427}]

{"sheet":"Λίστα εξοπλισμού","index":1,"n_rows":9,"n_cols":20,"rows_kept":9,"cut":false,"hidden":false,"merged":[]}
[null,"Λίστα εξοπλισμού"]
[]
[null,null,null,"Επισήμανση όταν οι μηνιαίες πληρωμές που απομένουν είναι λιγότερες από: ",20]
[]
[null,"Στοιχείο ή\nσειριακός αριθμός","Περιγραφή στοιχείου\n(Κατασκευαστής και μοντέλο)","Τοποθεσία","Κατάσταση","Προμηθευτής","Έτη λειτουργίας\nπου απομένουν ","Αρχική αξία","Προκαταβολή","Ημερομηνία αγοράς\nή εκμίσθωσης","Διάρκεια δανείου\n(Έτη)","Επιτόκιο δανείου","Μηνιαίο\nλειτουργικό κόστος","Αναμενόμενη αξία κατά τη λήξη της σύμβασης","Μηνιαίες πληρωμές\nπου απομένουν","Μηνιαία πληρωμή","Συνολικό\nμηνιαίο κόστος","Ετήσια απόσβεση\n(Γραμμική)","Μηνιαία απόσβεση\n(Γραμμική)","Παρούσα αξία"]
[null,123,"Μοντέλο κατασκευαστή 1","Έδρα","Καλή","Τοπικός",5,30000,5000,"2011-01-15",4,0.1,200,20000,{"$f":"IFERROR(SUMPRODUCT(--(DAY(ROW(OFFSET($A$1,,,DATE(YEAR(Equipment[[#This Row],[Ημερομηνία αγοράς\nή εκμίσθωσης]])+Equipment[[#This Row],[Διάρκεια δανείου\n(Έτη)]],MONTH(Equipment[[#This Row],[Ημερομηνία αγοράς\nή εκμίσθωσης]])-1,DAY(Equipment[[#This Row],[Ημερομηνία αγοράς\nή εκμίσθωσης]]))-TODAY()))+DATE(YEAR(Equipment[[#This Row],[Ημερομηνία αγοράς\nή εκμίσθωσης]])+Equipment[[#This Row],[Διάρκεια δανείου\n(Έτη)]],MONTH(Equipment[[#This Row],[Ημερομηνία αγοράς\nή εκμίσθωσης]]),DAY(Equipment[[#This Row],[Ημερομηνία αγοράς\nή εκμίσθωσης]]))-1)=DAY(Equipment[[#This Row],[Ημερομηνία αγοράς\nή εκμίσθωσης]]))),0)","v":24},{"$f":"IFERROR(-(Equipment[Αρχική αξία]>0)*(Equipment[Αρχική αξία]<>Equipment[Προκαταβολή])*PMT(Equipment[Επιτόκιο δανείου]/MonthsInYear,Equipment[Διάρκεια δανείου\n(Έτη)]*MonthsInYear,Equipment[Αρχική αξία]-Equipment[Προκαταβολή]),0)","v":634.06458586867973},{"$f":"Equipment[[#This Row],[Μηνιαία πληρωμή]]+Equipment[Μηνιαίο\nλειτουργικό κόστος]","v":834.06458586867973},{"$f":"IFERROR((Equipment[Αρχική αξία]>0)*SLN(Equipment[Αρχική αξία],Equipment[Αναμενόμενη αξία κατά τη λήξη της σύμβασης],Equipment[Διάρκεια δανείου\n(Έτη)]),0)","v":2500},{"$f":"IFERROR(Equipment[Ετήσια απόσβεση\n(Γραμμική)]/MonthsInYear,0)","v":208.33333333333334},{"$f":"IFERROR(Equipment[Αρχική αξία]-(Equipment[Ετήσια απόσβεση\n(Γραμμική)]*((TODAY()-Equipment[Ημερομηνία αγοράς\nή εκμίσθωσης])/DaysInYear)),0)","v":25171.232876712329}]
[null,234,"Μοντέλο κατασκευαστή 2","Έδρα","Καλή","Τοπικός",4,12500,1500,"2011-03-10",3,7.7499999999999999E-2,120,3000,{"$f":"IFERROR(SUMPRODUCT(--(DAY(ROW(OFFSET($A$1,,,DATE(YEAR(Equipment[[#This Row],[Ημερομηνία αγοράς\nή εκμίσθωσης]])+Equipment[[#This Row],[Διάρκεια δανείου\n(Έτη)]],MONTH(Equipment[[#This Row],[Ημερομηνία αγοράς\nή εκμίσθωσης]])-1,DAY(Equipment[[#This Row],[Ημερομηνία αγοράς\nή εκμίσθωσης]]))-TODAY()))+DATE(YEAR(Equipment[[#This Row],[Ημερομηνία αγοράς\nή εκμίσθωσης]])+Equipment[[#This Row],[Διάρκεια δανείου\n(Έτη)]],MONTH(Equipment[[#This Row],[Ημερομηνία αγοράς\nή εκμίσθωσης]]),DAY(Equipment[[#This Row],[Ημερομηνία αγοράς\nή εκμίσθωσης]]))-1)=DAY(Equipment[[#This Row],[Ημερομηνία αγοράς\nή εκμίσθωσης]]))),0)","v":14},{"$f":"IFERROR(-(Equipment[Αρχική αξία]>0)*(Equipment[Αρχική αξία]<>Equipment[Προκαταβολή])*PMT(Equipment[Επιτόκιο δανείου]/MonthsInYear,Equipment[Διάρκεια δανείου\n(Έτη)]*MonthsInYear,Equipment[Αρχική αξία]-Equipment[Προκαταβολή]),0)","v":343.43280007691891},{"$f":"Equipment[[#This Row],[Μηνιαία πληρωμή]]+Equipment[Μηνιαίο\nλειτουργικό κόστος]","v":463.43280007691891},{"$f":"IFERROR((Equipment[Αρχική αξία]>0)*SLN(Equipment[Αρχική αξία],Equipment[Αναμενόμενη αξία κατά τη λήξη της σύμβασης],Equipment[Διάρκεια δανείου\n(Έτη)]),0)","v":3166.6666666666665},{"$f":"IFERROR(Equipment[Ετήσια απόσβεση\n(Γραμμική)]/MonthsInYear,0)","v":263.88888888888886},{"$f":"IFERROR(Equipment[Αρχική αξία]-(Equipment[Ετήσια απόσβεση\n(Γραμμική)]*((TODAY()-Equipment[Ημερομηνία αγοράς\nή εκμίσθωσης])/DaysInYear)),0)","v":6852.054794520549}]
[null,345,"Μοντέλο κατασκευαστή 2","Υποκατάστημα 1","Ανεκτή","Άλλος",1,10000,2500,"2010-09-15",4,0.08,285,1000,{"$f":"IFERROR(SUMPRODUCT(--(DAY(ROW(OFFSET($A$1,,,DATE(YEAR(Equipment[[#This Row],[Ημερομηνία αγοράς\nή εκμίσθωσης]])+Equipment[[#This Row],[Διάρκεια δανείου\n(Έτη)]],MONTH(Equipment[[#This Row],[Ημερομηνία αγοράς\nή εκμίσθωσης]])-1,DAY(Equipment[[#This Row],[Ημερομηνία αγοράς\nή εκμίσθωσης]]))-TODAY()))+DATE(YEAR(Equipment[[#This Row],[Ημερομηνία αγοράς\nή εκμίσθωσης]])+Equipment[[#This Row],[Διάρκεια δανείου\n(Έτη)]],MONTH(Equipment[[#This Row],[Ημερομηνία αγοράς\nή εκμίσθωσης]]),DAY(Equipment[[#This Row],[Ημερομηνία αγοράς\nή εκμίσθωσης]]))-1)=DAY(Equipment[[#This Row],[Ημερομηνία αγοράς\nή εκμίσθωσης]]))),0)","v":20},{"$f":"IFERROR(-(Equipment[Αρχική αξία]>0)*(Equipment[Αρχική αξία]<>Equipment[Προκαταβολή])*PMT(Equipment[Επιτόκιο δανείου]/MonthsInYear,Equipment[Διάρκεια δανείου\n(Έτη)]*MonthsInYear,Equipment[Αρχική αξία]-Equipment[Προκαταβολή]),0)","v":183.09691756126861},{"$f":"Equipment[[#This Row],[Μηνιαία πληρωμή]]+Equipment[Μηνιαίο\nλειτουργικό κόστος]","v":468.09691756126858},{"$f":"IFERROR((Equipment[Αρχική αξία]>0)*SLN(Equipment[Αρχική αξία],Equipment[Αναμενόμενη αξία κατά τη λήξη της σύμβασης],Equipment[Διάρκεια δανείου\n(Έτη)]),0)","v":2250},{"$f":"IFERROR(Equipment[Ετήσια απόσβεση\n(Γραμμική)]/MonthsInYear,0)","v":187.5},{"$f":"IFERROR(Equipment[Αρχική αξία]-(Equipment[Ετήσια απόσβεση\n(Γραμμική)]*((TODAY()-Equipment[Ημερομηνία αγοράς\nή εκμίσθωσης])/DaysInYear)),0)","v":4902.0547945205481}]
[null,"Σύνολο",null,null,null,null,{"$f":"SUBTOTAL(101,Equipment[Έτη λειτουργίας\nπου απομένουν ])","v":3.3333333333333335},{"$f":"SUBTOTAL(109,Equipment[Αρχική αξία])","v":52500},{"$f":"SUBTOTAL(109,Equipment[Προκαταβολή])","v":9000},null,{"$f":"SUBTOTAL(101,Equipment[Διάρκεια δανείου\n(Έτη)])","v":3.6666666666666665},{"$f":"SUBTOTAL(101,Equipment[Επιτόκιο δανείου])","v":8.5833333333333331E-2},{"$f":"SUBTOTAL(109,Equipment[Μηνιαίο\nλειτουργικό κόστος])","v":605},{"$f":"SUBTOTAL(109,Equipment[Αναμενόμενη αξία κατά τη λήξη της σύμβασης])","v":24000},{"$f":"SUBTOTAL(101,Equipment[Μηνιαίες πληρωμές\nπου απομένουν])","v":19.333333333333332},{"$f":"SUBTOTAL(109,Equipment[Μηνιαία πληρωμή])","v":1160.5943035068672},{"$f":"SUBTOTAL(109,Equipment[Συνολικό\nμηνιαίο κόστος])","v":1765.5943035068672},{"$f":"SUBTOTAL(101,Equipment[Ετήσια απόσβεση\n(Γραμμική)])","v":2638.8888888888887},{"$f":"SUBTOTAL(101,Equipment[Μηνιαία απόσβεση\n(Γραμμική)])","v":219.90740740740739},{"$f":"SUBTOTAL(109,Equipment[Παρούσα αξία])","v":36925.342465753427}]

{"sheet":"Συγκεντρωτικά δεδομένα","index":2,"n_rows":17,"n_cols":8,"rows_kept":17,"cut":false,"hidden":false,"merged":[]}
[null,"Συγκεντρωτικά δεδομένα"]
[null,"Αυτό το φύλλο πρέπει να παραμείνει κρυφό. Η τροποποίηση της δομής του Συγκεντρωτικού Πίνακα σε αυτό το φύλλο ενδέχεται να προκαλέσει σφάλματα στους αναλυτές του πίνακα εργαλείων."]
[]
[]
[]
[null,"Περιγραφή στοιχείου\n(Κατασκευαστής και μοντέλο)","(Όλα)"]
[null,"Τοποθεσία","(Όλα)"]
[null,"Κατάσταση","(Όλα)"]
[null,"Προμηθευτής","(Όλα)"]
[null,"Έτη λειτουργίας\nπου απομένουν ","(Όλα)"]
[null,"Διάρκεια δανείου\n(Έτη)","(Όλα)"]
[]
[null,"Ετικέτες γραμμής"," Αρχική αξία","Μηνιαίο λειτουργικό κόστος","Μηνιαία πληρωμή ","Συνολικό μηνιαίο κόστος","Μηνιαία απόσβεση (Γραμμική)","Παρούσα αξία "]
[null,123,1,200,634.06458586867973,834.06458586867973,208.33333333333334,25171.232876712329]
[null,234,1,120,343.43280007691891,463.43280007691891,263.88888888888886,6852.054794520549]
[null,345,1,285,183.09691756126861,468.09691756126858,187.5,4902.0547945205481]
[null,"Γενικό Άθροισμα",3,605,1160.5943035068672,1765.5943035068672,659.72222222222217,36925.342465753427]